bitfinex-derivatives/quotes_BTCF0:USTF0_20250626
["timestamp","ask_amount","ask_price","bid_price","bid_amount"]
[1750929144547,0.89364168,107530.0,107520.0,1.2877115]
[1750929144846,0.6134942,107530.0,107520.0,1.2877115]
[1750929145039,0.89364168,107530.0,107520.0,1.2877115]
[1750929145239,0.89364168,107530.0,107520.0,1.3194115]
[1750929145545,0.89364168,107530.0,107520.0,0.5706115]
[1750929145743,0.89364168,107530.0,107520.0,1.3170115]
[1750929150041,0.86284168,107530.0,107520.0,1.3170115]
[1750929150344,0.86284168,107530.0,107520.0,1.3470115]
[1750929150642,0.3628,107530.0,107520.0,1.62715898]
[1750929156848,0.82884158,107530.0,107520.0,0.6006115]
[1750929157048,0.82984158,107530.0,107520.0,1.3452915]
[1750929157245,0.86264158,107530.0,107520.0,1.3452915]
[1750929157446,0.86264158,107530.0,107520.0,0.6006115]
[1750929157646,0.86264158,107530.0,107520.0,1.3452915]
[1750929157845,0.86254158,107530.0,107520.0,0.5706115]
[1750929158150,0.89504158,107530.0,107520.0,0.50116]
[1750929158547,0.89504158,107530.0,107520.0,0.083]
[1750929158748,0.89504158,107530.0,107520.0,0.333]
[1750929158948,0.89504158,107530.0,107520.0,0.52116]
[1750929159553,0.89504158,107530.0,107520.0,0.7070714]
[1750929159853,0.89504158,107530.0,107520.0,0.23116]
[1750929160041,0.89504158,107530.0,107520.0,0.53116]
[1750929160953,1.8123345,107530.0,107520.0,0.011]
[1750929161451,0.1869287,107510.0,107500.0,0.35088309]
[1750929161647,1.18867618,107510.0,107500.0,0.73088309]
[1750929161946,1.25057618,107510.0,107500.0,0.73088309]
[1750929162449,1.25057618,107510.0,107500.0,0.58272309]
[1750929162848,1.25257618,107510.0,107500.0,0.58672309]
[1750929163249,1.25257618,107510.0,107500.0,0.58872309]
[1750929163856,0.9409287,107510.0,107500.0,0.58872309]
[1750929164049,0.9409287,107510.0,107500.0,0.68432309]
[1750929164450,0.9419287,107510.0,107500.0,0.68432309]
[1750929164652,0.9409287,107510.0,107500.0,0.68432309]
[1750929164847,0.9419287,107510.0,107500.0,0.68432309]
[1750929165056,1.22207618,107510.0,107500.0,0.68432309]
[1750929165550,1.22107618,107510.0,107500.0,0.68432309]
[1750929165854,1.22207618,107510.0,107500.0,0.68432309]
[1750929166052,0.9419287,107510.0,107500.0,0.68432309]
[1750929166853,0.7236,107510.0,107500.0,0.96447057]
[1750929168960,0.7236,107510.0,107500.0,0.68432309]
[1750929169560,1.18967618,107510.0,107500.0,0.83252309]
[1750929169760,1.18967618,107510.0,107500.0,1.42836309]
[1750929170160,0.9095287,107510.0,107500.0,1.42836309]
[1750929170759,0.9095287,107510.0,107500.0,0.68432309]
[1750929170965,0.9409287,107510.0,107500.0,1.42840309]
[1750929173869,0.755,107510.0,107500.0,1.42840309]
[1750929176468,1.03514748,107510.0,107500.0,0.58872309]
[1750929176665,1.03514748,107510.0,107480.0,0.00552827]
[1750929176864,0.001,107420.0,107400.0,0.37214493]
[1750929177068,0.5469018,107410.0,107400.0,0.0055]
[1750929177366,0.1871365,107390.0,107380.0,0.14951123]
[1750929177571,0.9087365,107390.0,107380.0,0.70733961]
[1750929177867,1.21888398,107390.0,107380.0,0.48951123]
[1750929178165,1.21888398,107390.0,107380.0,0.34]
[1750929178364,1.416417,107390.0,107380.0,0.33]
[1750929178569,0.7516,107390.0,107380.0,0.33]
[1750929178765,0.7516,107390.0,107380.0,0.67016441]
[1750929178966,0.7226,107390.0,107380.0,0.85529279]
[1750929179162,0.9087364,107390.0,107380.0,0.73403909]
[1750929179564,0.9387364,107390.0,107380.0,0.51605909]
[1750929179864,1.26818866,107390.0,107380.0,0.12]
[1750929180170,0.0465402,107380.0,107350.0,0.00643309]
[1750929180467,0.9249768,107360.0,107350.0,0.32093149]
[1750929180672,0.9259768,107360.0,107350.0,0.50605987]
[1750929180858,0.9887768,107360.0,107350.0,0.32093149]
[1750929181061,1.31822906,107360.0,107350.0,0.35819149]
[1750929181568,1.31822906,107360.0,107350.0,0.32093149]
[1750929182467,1.32322906,107360.0,107350.0,0.32093149]
[1750929183271,0.9937768,107360.0,107350.0,0.32093149]
[1750929183476,1.32622906,107360.0,107350.0,0.32093149]
[1750929183668,1.32522906,107360.0,107350.0,0.32093149]
[1750929183869,0.8095884,107360.0,107350.0,0.35819149]
[1750929184068,0.9632767,107360.0,107350.0,0.50605987]
[1750929184372,0.7467884,107360.0,107350.0,0.72449618]
[1750929184679,0.7467884,107360.0,107350.0,0.75729618]
[1750929185066,0.7296,107360.0,107350.0,1.08674844]
[1750929185268,0.3770554,107380.0,107370.0,0.186171]
[1750929185468,0.5570554,107380.0,107370.0,0.69129938]
[1750929185671,0.5570554,107380.0,107370.0,0.75539938]
[1750929185867,0.5570554,107380.0,107370.0,1.08485164]
[1750929186067,0.5478882,107420.0,107400.0,0.2326433]
[1750929186264,0.212,107420.0,107410.0,0.4031017]
[1750929186466,0.3980843,107420.0,107410.0,0.79602838]
[1750929186672,0.7588843,107420.0,107410.0,0.79602838]
[1750929186868,0.3980843,107420.0,107410.0,0.98213008]
[1750929187069,0.7588843,107420.0,107410.0,0.98213008]
[1750929187376,1.08833656,107420.0,107410.0,0.73212838]
[1750929187574,1.15123656,107420.0,107410.0,0.73212838]
[1750929188273,1.15823656,107420.0,107410.0,0.73312838]
[1750929188466,1.16323656,107420.0,107410.0,0.73312838]
[1750929188662,1.16323656,107420.0,107410.0,0.70223008]
[1750929188868,1.16323656,107420.0,107410.0,0.73312838]
[1750929189066,1.16323656,107420.0,107410.0,0.91923008]
[1750929189267,1.16323656,107420.0,107410.0,0.95193008]
[1750929190470,0.8337843,107420.0,107410.0,0.95193008]
[1750929190667,1.16323656,107420.0,107410.0,0.331]
[1750929190866,1.16323656,107420.0,107410.0,0.7341017]
[1750929191066,1.16223656,107420.0,107410.0,0.7341017]
[1750929191266,1.16323656,107420.0,107410.0,0.7668017]
[1750929191472,1.16323656,107420.0,107410.0,0.95193008]
[1750929192181,0.8337843,107420.0,107410.0,0.95193008]
[1750929192475,1.16323656,107420.0,107410.0,0.95193008]
[1750929192675,1.13043656,107420.0,107410.0,0.7668017]
[1750929192972,1.13043656,107420.0,107410.0,0.98193008]
[1750929193171,0.5848,107420.0,107410.0,0.98193008]
[1750929193468,0.5838,107420.0,107410.0,0.98193008]
[1750929193674,0.5848,107420.0,107410.0,0.98193008]
[1750929194077,0.224,107420.0,107410.0,0.98193008]
[1750929194269,0.223,107420.0,107410.0,0.98193008]
[1750929194469,0.224,107420.0,107410.0,0.98193008]
[1750929195870,0.224,107420.0,107410.0,1.34273008]
[1750929196070,0.4100843,107420.0,107410.0,0.98193008]
[1750929196271,0.223,107420.0,107410.0,0.98193008]
[1750929196680,0.4090843,107420.0,107410.0,0.98193008]
[1750929196873,0.223,107420.0,107410.0,0.98193008]
[1750929197075,0.4090843,107420.0,107410.0,0.98193008]
[1750929197274,0.223,107420.0,107410.0,0.98193008]
[1750929197677,0.223,107420.0,107410.0,1.67218234]
[1750929197879,0.223,107420.0,107410.0,1.34273008]
[1750929198175,0.223,107420.0,107410.0,1.67218234]
[1750929199575,0.223,107420.0,107410.0,0.98193008]
[1750929199776,0.223,107420.0,107410.0,1.31138234]
[1750929203270,0.223,107420.0,107410.0,0.98193008]
[1750929203478,0.223,107420.0,107410.0,1.31138234]
[1750929203673,0.223,107420.0,107410.0,0.76493008]
[1750929203878,0.4090843,107420.0,107410.0,1.69065008]
[1750929204083,0.223,107420.0,107410.0,1.69065008]
[1750929204274,0.223,107420.0,107410.0,2.38090234]
[1750929204678,0.4090843,107420.0,107410.0,1.69065008]
[1750929204879,0.4090843,107420.0,107410.0,1.7051948]
[1750929205075,0.4090843,107420.0,107410.0,1.7050348]
[1750929205272,0.4090843,107420.0,107410.0,0.7794748]
[1750929205477,0.7698843,107420.0,107410.0,0.7794748]
[1750929205687,0.7698843,107420.0,107410.0,1.7044348]
[1750929206185,0.7648843,107420.0,107410.0,1.7064348]
[1750929206385,0.7648843,107420.0,107410.0,0.7814748]
[1750929206684,0.7648843,107420.0,107410.0,1.6983948]
[1750929207682,0.5548843,107420.0,107410.0,1.3683948]
[1750929207880,0.5548843,107420.0,107410.0,1.7173948]
[1750929207881,0.8878843,107420.0,107410.0,1.7173948]
[1750929208083,0.8888843,107420.0,107410.0,1.7203948]
[1750929208681,0.7028,107420.0,107410.0,1.7203948]
[1750929208888,0.37291161,107420.0,107410.0,1.7203948]
[1750929210281,0.37291161,107420.0,107410.0,2.41064706]
[1750929211289,0.37291161,107420.0,107410.0,1.1642748]
[1750929211482,0.37291161,107420.0,107410.0,1.7167148]
[1750929214291,0.37291161,107420.0,107410.0,2.04616706]
[1750929216192,0.37291161,107420.0,107410.0,1.7167148]
[1750929216591,0.37291161,107420.0,107410.0,2.0775148]
[1750929217379,0.37291161,107420.0,107410.0,2.15285701]
[1750929217584,0.37291161,107420.0,107410.0,1.23961701]
[1750929217780,0.37291161,107420.0,107410.0,2.14865701]
[1750929218781,0.37291161,107420.0,107410.0,2.47810927]
[1750929218995,0.37291161,107420.0,107410.0,2.14865701]
[1750929219293,0.37291161,107420.0,107410.0,2.47810927]
[1750929220591,0.37291161,107420.0,107410.0,2.14865701]
[1750929221295,0.37291161,107420.0,107410.0,1.23961701]
[1750929221496,0.37291161,107420.0,107410.0,2.14785701]
[1750929221893,0.17383449,107470.0,107410.0,2.72730927]
[1750929222202,0.17383449,107470.0,107460.0,0.3608]
[1750929222203,0.60847296,107470.0,107460.0,0.3608]
[1750929222395,0.67167296,107470.0,107460.0,0.36454472]
[1750929222591,2.42167296,107470.0,107460.0,0.36454472]
[1750929222990,2.44167296,107470.0,107460.0,0.31464472]
[1750929223194,2.45116803,107470.0,107460.0,0.31464472]
[1750929223994,2.45116803,107470.0,107460.0,0.50065992]
[1750929224291,2.45116803,107470.0,107460.0,0.31464472]
[1750929224491,2.45916803,107470.0,107460.0,0.31464472]
[1750929224698,2.45916803,107470.0,107460.0,0.50066002]
[1750929225093,2.45516803,107470.0,107460.0,0.4970153]
[1750929225297,2.44667296,107470.0,107460.0,0.4970153]
[1750929225593,2.44667296,107470.0,107460.0,0.1870153]
[1750929225594,2.19667296,107470.0,107460.0,0.1870153]
[1750929225794,3.09451296,107470.0,107460.0,0.5470153]
[1750929226299,2.19667296,107470.0,107460.0,0.5470154]
[1750929226597,2.19667296,107470.0,107460.0,0.1870154]
[1750929226598,3.09383296,107470.0,107460.0,0.1870154]
[1750929227293,2.19667296,107470.0,107460.0,0.5370154]
[1750929227495,3.45463296,107470.0,107460.0,0.1870154]
[1750929227697,2.55747296,107470.0,107460.0,0.4970153]
[1750929228001,3.70327296,107470.0,107460.0,0.001]
[1750929228192,3.45327296,107470.0,107460.0,0.001]
[1750929229193,0.1860153,107460.0,107450.0,0.3608]
[1750929229501,0.1860326,107450.0,107440.0,0.6398616]
[1750929229704,0.75858486,107450.0,107440.0,0.9068388]
[1750929229904,0.75858486,107450.0,107440.0,0.5468499]
[1750929230197,1.65374486,107450.0,107440.0,0.5468499]
[1750929230387,1.65374486,107450.0,107440.0,0.9068499]
[1750929230701,1.65362486,107450.0,107440.0,0.9078499]
[1750929230894,1.65362486,107450.0,107440.0,0.5478499]
[1750929231199,1.65362486,107450.0,107440.0,0.8978499]
[1750929232699,1.3241726,107450.0,107440.0,0.8978499]
[1750929232899,1.65362486,107450.0,107440.0,0.8978499]
[1750929233407,1.3241726,107450.0,107440.0,0.5478499]
[1750929233700,1.65362486,107450.0,107440.0,0.8778499]
[1750929234003,1.68107768,107450.0,107440.0,0.8778499]
[1750929234193,1.68107768,107450.0,107440.0,0.8578499]
[1750929234504,1.68107768,107450.0,107440.0,0.8598499]
[1750929236701,1.69807278,107450.0,107440.0,0.8598499]
[1750929237093,1.54807278,107450.0,107440.0,0.5498499]
[1750929237603,1.70415278,107450.0,107440.0,0.8998499]
[1750929237794,1.70415278,107450.0,107440.0,0.7138]
[1750929237996,1.54415278,107450.0,107440.0,0.8998498]
[1750929238502,1.54415278,107450.0,107440.0,0.123]
[1750929238703,2.23440504,107450.0,107440.0,0.003]
[1750929239000,2.37695222,107450.0,107440.0,0.003]
[1750929239198,0.1860671,107430.0,107420.0,0.09287105]
[1750929239402,1.20095936,107430.0,107420.0,0.29714842]
[1750929239705,1.26495936,107430.0,107420.0,0.07714842]
[1750929240199,1.69575936,107430.0,107420.0,0.04]
[1750929240403,1.69575936,107430.0,107420.0,0.049]
[1750929240404,1.69675936,107430.0,107420.0,0.049]
[1750929241104,0.1860844,107420.0,107410.0,0.00093097]
[1750929241305,1.29479666,107420.0,107410.0,0.16506467]
[1750929241497,0.1861191,107400.0,107390.0,0.69572183]
[1750929241695,1.20101136,107400.0,107390.0,1.23235021]
[1750929241892,1.23341136,107400.0,107390.0,1.26948035]
[1750929242510,1.23341136,107400.0,107390.0,1.21375772]
[1750929242800,1.23341136,107400.0,107390.0,1.16722392]
[1750929243004,0.9361791,107400.0,107390.0,0.95315101]
[1750929243206,0.58167136,107400.0,107390.0,0.95715101]
[1750929243399,1.26571136,107400.0,107390.0,1.14328741]
[1750929243606,1.26571136,107400.0,107390.0,1.18036933]
[1750929243911,1.26571136,107400.0,107390.0,1.14328741]
[1750929244097,1.26571136,107400.0,107390.0,1.14528741]
[1750929244406,1.26579136,107400.0,107390.0,1.18235046]
[1750929244713,1.26487136,107400.0,107390.0,1.18235046]
[1750929244904,0.58167136,107400.0,107390.0,0.49108568]
[1750929245093,1.26487136,107400.0,107390.0,0.45958568]
[1750929245603,0.2195191,107400.0,107390.0,1.18085046]
[1750929245805,0.2195191,107400.0,107390.0,1.21275046]
[1750929246005,0.2195191,107400.0,107390.0,1.24505046]
[1750929246210,1.23197136,107400.0,107390.0,1.24505046]
[1750929247099,1.30032362,107400.0,107390.0,0.376]
[1750929247296,1.84947136,107400.0,107390.0,0.006]
[1750929247497,2.14892362,107400.0,107390.0,0.006]
[1750929247701,0.1861364,107390.0,107380.0,0.00093123]
[1750929247900,0.93808866,107390.0,107380.0,0.36605961]
[1750929248307,0.93808866,107390.0,107380.0,0.21818123]
[1750929248503,1.17808866,107390.0,107380.0,0.18093123]
[1750929248710,1.17808866,107390.0,107380.0,0.00093123]
[1750929249405,1.18208866,107390.0,107380.0,0.00193123]
[1750929249605,1.59186866,107390.0,107380.0,0.56808493]
[1750929249804,1.59186866,107390.0,107380.0,0.67143493]
[1750929250009,0.91098866,107390.0,107380.0,0.67143493]
[1750929250209,0.91298866,107390.0,107380.0,0.67143493]
[1750929250410,0.91298866,107390.0,107380.0,0.81931331]
[1750929250710,1.59302866,107390.0,107380.0,0.81931331]
[1750929250911,1.59298866,107390.0,107380.0,0.81931331]
[1750929251111,0.91298866,107390.0,107380.0,0.81931331]
[1750929251311,1.59242866,107390.0,107380.0,0.81931331]
[1750929251517,0.52158866,107390.0,107380.0,0.81931331]
[1750929251702,0.8712164,107390.0,107380.0,0.81931331]
[1750929251903,0.1921364,107390.0,107380.0,1.18011331]
[1750929252601,0.1921364,107390.0,107380.0,0.99498493]
[1750929252811,0.1921364,107390.0,107380.0,1.18011331]
[1750929254004,0.006,107390.0,107380.0,1.18011331]
[1750929254513,0.1921364,107390.0,107380.0,1.18011331]
[1750929254907,0.19341778,107390.0,107380.0,1.18011331]
[1750929255412,0.19341778,107390.0,107380.0,1.85715331]
[1750929255629,0.00728138,107390.0,107380.0,1.85715331]
[1750929256114,0.19341778,107390.0,107380.0,1.85715331]
[1750929257116,0.00728138,107390.0,107380.0,1.85715331]
[1750929257809,0.00728138,107390.0,107380.0,1.8940759]
[1750929258518,0.9077123,107410.0,107400.0,0.3256834]
[1750929258722,0.60861136,107410.0,107400.0,1.25161178]
[1750929259116,0.60861136,107410.0,107400.0,1.31671178]
[1750929259420,0.60861136,107410.0,107400.0,1.27018268]
[1750929259614,0.60861136,107410.0,107400.0,0.90938268]
[1750929261328,0.61161136,107410.0,107400.0,0.90938268]
[1750929261528,0.61161136,107410.0,107400.0,0.7252543]
[1750929261724,0.61861136,107410.0,107400.0,0.91038268]
[1750929261920,0.61861136,107410.0,107400.0,0.7252543]
[1750929262120,0.2891591,107410.0,107400.0,0.91038268]
[1750929262324,0.61861136,107410.0,107400.0,1.27118268]
[1750929262521,0.61861136,107410.0,107400.0,1.30813745]
[1750929262923,0.61861136,107410.0,107400.0,1.27118268]
[1750929263737,1.01221136,107410.0,107400.0,0.91038268]
[1750929265129,0.97941136,107410.0,107400.0,0.91038268]
[1750929266030,0.97941136,107410.0,107400.0,0.034]
[1750929266235,1.04311136,107410.0,107400.0,0.001]
[1750929266634,1.09272524,107410.0,107400.0,0.001]
[1750929268337,1.09272524,107410.0,107400.0,0.03795477]
[1750929268540,1.09272524,107410.0,107400.0,0.38795477]
[1750929269439,1.75992524,107410.0,107400.0,0.57407387]
[1750929269741,1.75940524,107410.0,107400.0,0.38795477]
[1750929269934,1.75940524,107410.0,107400.0,0.57407387]
[1750929270134,1.09272524,107410.0,107400.0,0.57407387]
[1750929270335,1.75896524,107410.0,107400.0,0.60637387]
[1750929270643,1.75896524,107410.0,107400.0,0.03795477]
[1750929271239,1.79896524,107410.0,107400.0,0.03795477]
[1750929274242,1.79896524,107410.0,107400.0,0.36795477]
[1750929274443,1.79896524,107410.0,107400.0,0.03795477]
[1750929275143,1.46951298,107410.0,107400.0,0.37795477]
[1750929275343,1.79896524,107410.0,107400.0,0.37795477]
[1750929275842,1.46951298,107410.0,107400.0,0.37795477]
[1750929276041,1.06082524,107410.0,107400.0,0.54407387]
[1750929276236,1.72438524,107410.0,107400.0,0.57657387]
[1750929276436,1.69014524,107410.0,107400.0,0.57657387]
[1750929276635,1.69014524,107410.0,107400.0,0.60917387]
[1750929277435,1.69014524,107410.0,107400.0,0.45305477]
[1750929277642,1.69014524,107410.0,107400.0,0.07045477]
[1750929277842,1.75244524,107410.0,107400.0,0.43045477]
[1750929279240,1.75244524,107410.0,107400.0,0.03795477]
[1750929279448,1.75244524,107410.0,107400.0,0.09338693]
[1750929281743,1.71860524,107410.0,107400.0,0.61950603]
[1750929282047,1.71860524,107410.0,107400.0,0.83743441]
[1750929282647,1.71860524,107410.0,107400.0,0.65230603]
[1750929282847,1.71860524,107410.0,107400.0,0.83743441]
[1750929283142,1.71860524,107410.0,107400.0,0.59588315]
[1750929283342,1.71860524,107410.0,107400.0,0.58588315]
[1750929283834,1.71860524,107410.0,107400.0,0.77200225]
[1750929284038,1.68670524,107410.0,107400.0,0.77200225]
[1750929284946,1.68670524,107410.0,107400.0,0.25588315]
[1750929285348,1.71940524,107410.0,107400.0,0.25588315]
[1750929286650,1.71940524,107410.0,107400.0,0.81200225]
[1750929286853,1.68670524,107410.0,107400.0,0.44200225]
[1750929287244,1.68670524,107410.0,107400.0,0.25588315]
[1750929287545,1.71670524,107410.0,107400.0,0.60588315]
[1750929287753,1.71670524,107410.0,107400.0,0.25588315]
[1750929287950,1.74780524,107410.0,107400.0,0.25588315]
[1750929288652,1.08892524,107410.0,107400.0,0.25588315]
[1750929288849,1.74392524,107410.0,107400.0,0.25588315]
[1750929289054,1.74372524,107410.0,107400.0,0.25588315]
[1750929292356,1.69524766,107410.0,107400.0,0.25588315]
[1750929292859,1.69524766,107410.0,107400.0,0.62436054]
[1750929293555,1.41427298,107410.0,107400.0,0.81047964]
[1750929293756,1.66414766,107410.0,107400.0,0.81047964]
[1750929294657,1.66414766,107410.0,107400.0,0.30706054]
[1750929294856,2.21622234,107410.0,107400.0,0.09366883]
[1750929295155,2.21622234,107410.0,107400.0,7e-08]
[1750929295357,0.1861364,107390.0,107380.0,0.05636339]
[1750929295658,1.83999108,107390.0,107380.0,0.05636339]
[1750929295857,1.93389108,107390.0,107380.0,0.46361339]
[1750929296053,1.93389108,107390.0,107380.0,0.49691339]
[1750929296261,1.98231502,107390.0,107380.0,0.09361339]
[1750929296451,1.6529164,107390.0,107380.0,0.09361339]
[1750929296651,1.98631502,107390.0,107380.0,0.09461339]
[1750929297561,2.00743444,107390.0,107380.0,0.03918123]
[1750929297963,2.00743108,107390.0,107380.0,0.00193123]
[1750929298456,2.19035108,107390.0,107380.0,0.00193123]
[1750929298659,2.35035108,107390.0,107380.0,3e-08]
[1750929299548,1.51615108,107390.0,107380.0,0.39725003]
[1750929299756,2.13559108,107390.0,107380.0,0.03725003]
[1750929299958,2.13507108,107390.0,107380.0,0.39725003]
[1750929300251,2.13527108,107390.0,107380.0,0.57702841]
[1750929300457,2.13527108,107390.0,107380.0,0.61002841]
[1750929301250,2.13527108,107390.0,107380.0,0.18512841]
[1750929301454,2.16577108,107390.0,107380.0,0.51512841]
[1750929301656,1.94527108,107390.0,107380.0,0.51512841]
[1750929301856,0.51953502,107390.0,107380.0,0.76348211]
[1750929302063,0.1901364,107390.0,107380.0,1.17971427]
[1750929302261,0.004,107390.0,107380.0,1.35623427]
[1750929302462,0.1901364,107390.0,107380.0,1.35623427]
[1750929302857,0.1901364,107390.0,107380.0,2.00539427]
[1750929303061,0.1901364,107390.0,107380.0,2.02380729]
[1750929303267,0.004,107390.0,107380.0,2.35320591]
[1750929304269,0.1861319,107400.0,107390.0,0.1861364]
[1750929304470,0.1861319,107400.0,107390.0,1.21047922]
[1750929304660,0.1861319,107400.0,107390.0,1.22860996]
[1750929305257,0.34231498,107410.0,107400.0,0.186119]
[1750929305467,0.34231498,107410.0,107400.0,0.81765315]
[1750929305668,0.34231498,107410.0,107400.0,0.99417315]
[1750929305961,0.2791719,107410.0,107400.0,1.64133315]
[1750929306162,0.186117,107410.0,107400.0,2.00213315]
[1750929306370,0.6409477,107420.0,107410.0,0.1861017]
[1750929306569,0.6409477,107420.0,107410.0,0.86002207]
[1750929307168,0.2336229,107420.0,107410.0,1.22082207]
[1750929307371,0.001,107420.0,107410.0,1.25142207]
[1750929307568,0.001,107420.0,107410.0,1.26957526]
[1750929307960,0.1870844,107420.0,107410.0,1.26957526]
[1750929308164,0.001,107420.0,107410.0,1.26957526]
[1750929308665,0.01,107420.0,107410.0,1.34470895]
[1750929308972,0.01,107420.0,107410.0,1.59470895]
[1750929309166,0.001,107420.0,107410.0,1.59370895]
[1750929309369,0.004,107420.0,107410.0,1.59470895]
[1750929309575,0.009,107420.0,107410.0,1.92410757]
[1750929310167,0.004,107420.0,107410.0,1.92410757]
[1750929310465,0.004,107420.0,107410.0,1.59470895]
[1750929310674,0.004,107420.0,107410.0,1.92410757]
[1750929310870,0.004,107420.0,107410.0,1.94256887]
[1750929311271,0.004,107420.0,107410.0,2.67158239]
[1750929311467,0.004,107420.0,107410.0,2.76388887]
[1750929312168,0.004,107420.0,107410.0,2.83796622]
[1750929312369,0.004,107420.0,107410.0,2.74565974]
[1750929313077,0.004,107420.0,107410.0,2.67158239]
[1750929314176,0.004,107420.0,107410.0,2.42158239]
[1750929314376,0.004,107420.0,107410.0,2.47710257]
[1750929316282,0.004,107420.0,107410.0,2.42844423]
[1750929317376,0.5019141,107450.0,107410.0,2.67844423]
[1750929317583,0.7344589,107450.0,107440.0,0.37117818]
[1750929317883,1.01519918,107450.0,107440.0,1.38081818]
[1750929318080,0.7344589,107450.0,107440.0,1.41301818]
[1750929318282,1.01519918,107450.0,107440.0,1.41301818]
[1750929318482,1.01519918,107450.0,107440.0,1.44591818]
[1750929318684,0.99009918,107450.0,107440.0,1.44591818]
[1750929318889,0.99909918,107450.0,107440.0,1.44691818]
[1750929319386,0.2645357,107450.0,107440.0,2.08845846]
[1750929319578,0.2180276,107450.0,107440.0,2.08845846]
[1750929319774,0.0319951,107450.0,107440.0,2.08845846]
[1750929320181,0.015,107450.0,107440.0,2.08845846]
[1750929320677,0.2010325,107450.0,107440.0,1.16807818]
[1750929320985,0.1950325,107450.0,107440.0,2.27093425]
[1750929321174,0.1930325,107450.0,107440.0,2.27093425]
[1750929321680,0.007,107450.0,107440.0,2.27093425]
[1750929322586,0.007,107450.0,107440.0,1.99019397]
[1750929322779,0.007,107450.0,107440.0,2.27093425]
[1750929323882,0.2334821,107480.0,107470.0,0.1859978]
[1750929324076,0.59201798,107480.0,107470.0,0.75112618]
[1750929324285,0.98361798,107480.0,107470.0,0.38]
[1750929324582,0.98361798,107480.0,107470.0,1.2046778]
[1750929324783,0.98361798,107480.0,107470.0,1.38980618]
[1750929324784,0.31304028,107480.0,107470.0,1.38980618]
[1750929324980,0.001,107480.0,107470.0,1.67054646]
[1750929325290,0.019,107480.0,107470.0,2.06644646]
[1750929325885,0.019,107480.0,107470.0,2.14080871]
[1750929326282,0.019,107480.0,107470.0,2.18868627]
[1750929327082,0.019,107480.0,107470.0,2.21788627]
[1750929327083,0.012,107480.0,107470.0,2.21788627]
[1750929327284,0.016,107480.0,107470.0,1.57920627]
[1750929327585,0.009,107480.0,107470.0,2.38736627]
[1750929331082,0.009,107480.0,107470.0,2.05734843]
[1750929331288,0.009,107480.0,107470.0,2.38596627]
[1750929331588,0.009,107480.0,107470.0,1.57920627]
[1750929331789,0.009,107480.0,107470.0,2.38576627]
[1750929336594,0.1949806,107480.0,107470.0,1.17622618]
[1750929336892,0.1949806,107480.0,107470.0,1.3703578]
[1750929336893,0.52359844,107480.0,107470.0,1.3703578]
[1750929337193,0.2583806,107480.0,107470.0,1.3703578]
[1750929337694,0.2583806,107480.0,107470.0,1.55548618]
[1750929338089,0.2583806,107480.0,107470.0,1.3703578]
[1750929338288,0.0724,107480.0,107470.0,1.94788618]
[1750929338487,0.0724,107480.0,107470.0,2.27650402]
[1750929338791,0.2583806,107480.0,107470.0,2.27650402]
[1750929339690,0.2583806,107480.0,107470.0,2.27582402]
[1750929339691,0.0724,107480.0,107470.0,2.27582402]
[1750929340195,0.0724,107480.0,107470.0,1.94720618]
[1750929340886,0.2583805,107480.0,107470.0,1.94720618]
[1750929341094,0.2583805,107480.0,107470.0,1.55480618]
[1750929342590,0.2583805,107480.0,107470.0,0.75212618]
[1750929342792,0.94779834,107480.0,107470.0,0.381]
[1750929342991,0.372025,107470.0,107460.0,0.1860096]
[1750929343303,1.16034284,107470.0,107460.0,0.5160096]
[1750929343591,1.17729736,107470.0,107460.0,0.5160152]
[1750929343796,0.84867952,107470.0,107460.0,0.33]
[1750929344095,2.12973736,107470.0,107460.0,0.33]
[1750929344590,0.1860325,107450.0,107440.0,0.9559706]
[1750929344789,0.5468325,107450.0,107440.0,1.3359706]
[1750929344995,0.6429325,107450.0,107440.0,0.7055706]
[1750929347588,0.6439325,107450.0,107440.0,0.7065706]
[1750929347795,0.6449325,107450.0,107440.0,0.7065706]
[1750929348188,0.6449325,107450.0,107440.0,0.660059]
[1750929348390,0.92563181,107450.0,107440.0,0.660059]
[1750929348895,1.0016702,107450.0,107440.0,0.660059]
[1750929349300,1.0026702,107450.0,107440.0,0.660059]
[1750929349492,0.72197089,107450.0,107440.0,0.660059]
[1750929351192,0.72197089,107450.0,107440.0,0.381]
[1750929351398,1.0026702,107450.0,107440.0,0.381]
[1750929352199,1.0026702,107450.0,107440.0,0.5670498]
[1750929352595,1.6293102,107450.0,107440.0,0.5670498]
[1750929355000,1.0026702,107450.0,107440.0,0.5670498]
[1750929355297,0.5457702,107450.0,107440.0,0.5670498]
[1750929355499,0.29517089,107450.0,107440.0,0.5991498]
[1750929355700,0.9673702,107450.0,107440.0,0.5670498]
[1750929356402,0.9673702,107450.0,107440.0,0.2070498]
[1750929356602,0.9673702,107450.0,107440.0,0.5670498]
[1750929358603,0.9673702,107450.0,107440.0,0.001]
[1750929358802,0.9773702,107450.0,107440.0,0.2070498]
[1750929358993,0.9773702,107450.0,107440.0,0.5470498]
[1750929359302,0.9773702,107450.0,107440.0,0.361]
[1750929359705,0.9673702,107450.0,107440.0,0.011]
[1750929359901,0.9873702,107450.0,107440.0,0.001]
[1750929360101,0.9873702,107450.0,107440.0,0.361]
[1750929361821,0.9873702,107450.0,107440.0,0.5470498]
[1750929362416,0.9873702,107450.0,107440.0,0.361]
[1750929363318,0.9873702,107450.0,107440.0,0.021]
[1750929364618,0.9873702,107450.0,107440.0,0.341]
[1750929365218,0.9873702,107450.0,107440.0,0.5270498]
[1750929365418,0.9873702,107450.0,107440.0,0.341]
[1750929366619,0.9873702,107450.0,107440.0,0.331]
[1750929366819,0.9873702,107450.0,107440.0,0.001]
[1750929367020,0.9873702,107450.0,107440.0,0.021]
[1750929367818,0.9873702,107450.0,107440.0,0.361]
[1750929369030,0.70667089,107450.0,107440.0,0.5470497]
[1750929369216,0.9873702,107450.0,107440.0,0.5470497]
[1750929369416,0.9673702,107450.0,107440.0,0.5470497]
[1750929369616,1.0773702,107450.0,107440.0,0.5470497]
[1750929371017,1.0466702,107450.0,107440.0,0.361]
[1750929371220,2.00744613,107450.0,107440.0,0.021]
[1750929371420,1.10018628,107450.0,107440.0,0.021]
[1750929371621,1.10018628,107450.0,107440.0,0.371]
[1750929371917,1.7048302,107450.0,107440.0,0.371]
[1750929372116,1.72676786,107450.0,107440.0,0.4017]
[1750929372321,1.10020786,107450.0,107440.0,0.4017]
[1750929372517,1.72676786,107450.0,107440.0,0.0317]
[1750929372821,1.72676786,107450.0,107440.0,0.3917]
[1750929374222,1.72676786,107450.0,107440.0,0.011]
[1750929374422,1.72676786,107450.0,107440.0,0.001]
[1750929374625,1.72676786,107450.0,107440.0,0.321]
[1750929374824,1.72676786,107450.0,107440.0,0.001]